fUST/lending_fUST_20240221
["ID","MTS","AMOUNT","RATE_DAILY","PERIOD"]
[314650725,1708503349945,-6006.97,0.00019478,2]
[314650726,1708503349973,-500.0,0.00019478,2]
[314650727,1708503350001,-500.0,0.00019478,2]
[314650728,1708503350030,-500.0,0.00019478,2]
[314650729,1708503350059,-500.0,0.00019478,2]
[314650730,1708503350090,-500.0,0.00019478,2]
[314650731,1708503350120,-163.97744344,0.00019478,2]
[314650732,1708503350151,-913.53,0.00019478,2]
[314650733,1708503350181,-500.0,0.00019478,2]
[314650734,1708503350209,-681.13,0.00019478,2]
[314650735,1708503350237,-500.0,0.00019478,2]
[314650736,1708503350392,-500.0,0.00019478,2]
[314650737,1708503350425,-2324.17,0.00019478,2]
[314650738,1708503350455,-500.0,0.00019478,2]
[314650739,1708503350486,-16267.16,0.00019478,2]
[314650740,1708503350516,-500.0,0.00019478,2]
[314650741,1708503350549,-500.0,0.00019478,2]
[314650742,1708503350578,-500.0,0.00019478,2]
[314650743,1708503350608,-225.73623162,0.00019478,2]
[314650744,1708503350637,-500.0,0.00019478,2]
[314650745,1708503350666,-500.0,0.00019478,2]
[314650746,1708503350696,-500.0,0.00019478,2]
[314650747,1708503350726,-3149.87,0.00019478,2]
[314650748,1708503350755,-500.0,0.00019478,2]
[314650749,1708503350784,-500.0,0.00019478,2]
[314650750,1708503350814,-500.0,0.00019478,2]
[314650751,1708503350846,-763.0,0.00019478,2]
[314650752,1708503350876,-500.0,0.00019478,2]
[314650753,1708503350908,-500.0,0.00019478,2]
[314650754,1708503350939,-500.0,0.00019478,2]
[314650755,1708503350971,-500.0,0.00019478,2]
[314650756,1708503351001,-500.0,0.00019478,2]
[314650757,1708503351030,-758.3,0.00019478,2]
[314650758,1708503351059,-608.86,0.00019478,2]
[314650759,1708503351090,-500.0,0.00019478,2]
[314650760,1708503351121,-500.0,0.00019478,2]
[314650761,1708503351152,-500.0,0.00019478,2]
[314650762,1708503351183,-3404.74,0.00019478,2]
[314650763,1708503351214,-500.0,0.00019478,2]
[314650764,1708503351246,-500.0,0.00019478,2]
[314650765,1708503351277,-500.0,0.00019478,2]
[314650766,1708503351307,-500.0,0.00019478,2]
[314650767,1708503351338,-4713.19,0.00019478,2]
[314650768,1708503351369,-2164.68962417,0.00019479,2]
[314650769,1708503351400,-500.0,0.00019479,2]
[314650770,1708503351431,-500.0,0.00019479,2]
[314650771,1708503351464,-500.0,0.00019479,2]
[314650772,1708503351496,-500.0,0.00019479,2]
[314650773,1708503351527,-500.0,0.00019479,2]
[314650774,1708503351558,-22528.83,0.00019479,2]
[314650775,1708503351587,-500.0,0.00019479,2]
[314650776,1708503351617,-2091.78,0.00019479,2]
[314650777,1708503351649,-500.0,0.00019479,2]
[314650778,1708503351680,-500.0,0.00019479,2]
[314650779,1708503351710,-500.0,0.00019479,2]
[314650780,1708503351739,-500.0,0.00019479,2]
[314650781,1708503351788,-151.0,0.00019479,2]
[314650782,1708503351817,-1052.02,0.00019479,2]
[314650783,1708503351966,-500.0,0.0001948,2]
[314650784,1708503351998,-500.0,0.0001948,2]
[314650785,1708503352028,-500.0,0.0001948,2]
[314650786,1708503352059,-546.89,0.0001948,2]
[314650787,1708503352089,-640.18,0.0001948,2]
[314650788,1708503352120,-500.0,0.0001948,2]
[314650789,1708503352152,-500.0,0.0001948,2]
[314650790,1708503352182,-500.0,0.0001948,2]
[314650791,1708503352212,-549.95,0.0001948,2]
[314650792,1708503352242,-1128.56,0.0001948,2]
[314650793,1708503352273,-553.79,0.0001948,2]
[314650794,1708503352303,-500.0,0.0001948,2]
[314650795,1708503352332,-500.0,0.0001948,2]
[314650796,1708503352362,-500.0,0.0001948,2]
[314650797,1708503352392,-500.0,0.00019481,2]
[314650798,1708503352425,-500.0,0.00019481,2]
[314650799,1708503352457,-500.0,0.00019482,2]
[314650800,1708503352494,-34388.25996426,0.00019483,2]
[314650801,1708503359202,560.60794074,0.000189,2]
[314650802,1708503402382,-213.00322684,0.00019476,2]
[314650803,1708503402413,-752.62,0.00019476,2]
[314650804,1708503402453,-21590.13,0.00019476,2]
[314650805,1708503402485,-500.0,0.00019477,2]
[314650806,1708503402516,-550.21,0.00019477,2]
[314650807,1708503402548,-500.0,0.00019477,2]
[314650808,1708503402579,-623.06,0.00019477,2]
[314650809,1708503402610,-500.0,0.00019477,2]
[314650810,1708503402641,-3838.77,0.00019477,2]
[314650811,1708503402671,-2202.52,0.00019477,2]
[314650812,1708503402702,-5256.09,0.00019477,2]
[314650813,1708503402741,-500.0,0.00019477,2]
[314650814,1708503402778,-500.0,0.00019477,2]
[314650815,1708503402809,-2273.34,0.00019478,2]
[314650816,1708503402842,-500.0,0.00019478,2]
[314650817,1708503402873,-500.0,0.00019478,2]
[314650818,1708503402902,-5028.3,0.00019478,2]
[314650819,1708503402932,-500.0,0.00019478,2]
[314650820,1708503402961,-524.11,0.00019478,2]
[314650821,1708503402991,-500.0,0.00019478,2]
[314650822,1708503403020,-500.0,0.00019478,2]
[314650823,1708503403050,-500.0,0.00019479,2]
[314650824,1708503403080,-26563.08,0.00019479,2]
[314650825,1708503403117,-3195.0622879,0.00019483,2]
[314650826,1708503403146,-151.0,0.00019483,2]
[314650827,1708503403175,-219.06936996,0.000195,2]
[314650828,1708503406727,613.5,0.00019478,2]
[314650829,1708503411357,500.0,0.00019478,2]
[314650830,1708503412200,500.0,0.00019477,2]
[314650831,1708503413618,393.20705888,0.00019478,2]
[314650832,1708503415846,538.98,0.00019479,2]
[314650833,1708503417939,500.0,0.00019477,2]
[314650834,1708503419282,500.0,0.00019477,2]
[314650835,1708503419526,500.0,0.00019478,2]
[314650836,1708503420402,1252.76,0.00019479,2]
[314650837,1708503427044,423.4232667,0.00019477,2]
[314650838,1708503429645,500.0,0.00019478,2]
[314650839,1708503431427,500.0,0.00019478,2]
[314650840,1708503434577,500.0,0.00019477,2]
[314650841,1708503442520,488.81064989,0.00019479,2]
[314650842,1708503443538,527.04,0.00019478,2]
[314650843,1708503445311,873.66,0.00019479,2]
[314650844,1708503446365,500.0,0.00019476,2]
[314650845,1708503449076,500.0,0.00019477,2]
[314650846,1708503450480,500.0,0.00019477,2]
[314650847,1708503452264,500.0,0.00019477,2]
[314650848,1708503455634,500.0,0.00019476,2]
[314650849,1708503460876,1081.53,0.00019478,2]
[314650850,1708503461044,500.0,0.00019478,2]
[314650851,1708503463471,500.0,0.00019476,2]
[314650852,1708503463511,15589.37,0.00019477,2]
[314650853,1708503468315,1517.66,0.00019479,2]
[314650854,1708503470064,867.79,0.00019476,2]
[314650855,1708503471661,234.07070887,0.00019477,2]
[314650856,1708503473258,2028.17,0.00019477,2]
[314650857,1708503487497,2756.13,0.00019477,2]
[314650858,1708503488652,500.0,0.00019478,2]
[314650859,1708503489166,500.0,0.00019477,2]
[314650860,1708503489659,530.72,0.00019478,2]
[314650861,1708503490896,500.0,0.00019477,2]
[314650862,1708503495456,500.0,0.00019479,2]
[314650863,1708503495924,500.0,0.00019477,2]
[314650864,1708503497868,500.0,0.00019479,2]
[314650865,1708503498603,726.63,0.00019479,2]
[314650866,1708503499584,500.0,0.00019476,2]
[314650867,1708503501013,500.0,0.00019478,2]
[314650868,1708503501334,500.0,0.00019477,2]
[314650869,1708503501511,9888.8,0.00019477,2]
[314650870,1708503503945,500.0,0.00019476,2]
[314650871,1708503504779,-300.0,0.000221,10]
[314650872,1708503509788,500.0,0.00019476,2]
[314650873,1708503509930,14835.87,0.00019477,2]
[314650874,1708503510429,501.4,0.00019477,2]
[314650875,1708503514898,500.0,0.00019477,2]
[314650876,1708503517217,500.0,0.00019477,2]
[314650877,1708503519726,1781.46,0.00019479,2]
[314650878,1708503521401,1161.07,0.00019477,2]
[314650879,1708503522410,4190.85,0.00019477,2]
[314650880,1708503533931,500.0,0.00019476,2]
[314650881,1708503534566,500.0,0.00019477,2]
[314650882,1708503537427,500.0,0.00019477,2]
[314650883,1708503539838,500.0,0.00019477,2]
[314650884,1708503541447,3262.87,0.00019477,2]
[314650885,1708503543384,-620.00048942,0.00019604,2]
[314650886,1708503547283,500.0,0.00019476,2]
[314650887,1708503553137,-3437.78,0.00019741,3]
[314650888,1708503553844,500.0,0.00019478,2]
[314650889,1708503554871,1620.0,0.00019476,2]
[314650890,1708503556004,749.36,0.00019477,2]
[314650891,1708503557429,-2864.82,0.00019741,3]
[314650892,1708503557466,-883.01,0.00019741,3]
[314650893,1708503558857,249.5002275,0.00019504,2]
[314650894,1708503564418,1122.2,0.00019477,2]
[314650895,1708503567795,3018.93879366,0.00019477,2]
[314650896,1708503567826,74.14120634,0.00019477,2]
[314650897,1708503568581,500.0,0.00019477,2]
[314650898,1708503570522,500.0,0.00019477,2]
[314650899,1708503572487,1378.87,0.00019479,2]
[314650900,1708503575046,500.0,0.00019478,2]
[314650901,1708503577003,500.0,0.00019477,2]
[314650902,1708503579921,500.0,0.00019479,2]
[314650903,1708503584415,556.31,0.00019476,2]
[314650904,1708503588128,500.0,0.00019479,2]
[314650905,1708503592781,500.0,0.00019476,2]
[314650906,1708503594686,2916.22,0.00019479,2]
[314650907,1708503595910,500.0,0.00019479,2]
[314650908,1708503596988,500.0,0.00019476,2]
[314650909,1708503606611,5537.68,0.00019477,2]
[314650910,1708503607397,500.0,0.00019477,2]
[314650911,1708503607908,500.0,0.00019479,2]
[314650913,1708503610690,542.39669183,0.00019476,2]
[314650914,1708503610725,597.1,0.00019477,2]
[314650916,1708503617235,544.48,0.00019478,2]
[314650917,1708503618078,151.0,0.00019476,2]
[314650918,1708503618412,500.0,0.00019476,2]
[314650919,1708503620637,3678.82,0.00019477,2]
[314650920,1708503620880,500.0,0.00019479,2]
[314650921,1708503626313,2032.30330817,0.00019476,2]
[314650922,1708503626344,19000.0,0.00019476,2]
[314650923,1708503626375,227.80879366,0.00019476,2]
[314650924,1708503626407,4196.17789817,0.00019476,2]
[314650925,1708503628627,229.23019617,0.00019478,2]
[314650926,1708503628994,500.0,0.00019479,2]
[314650927,1708503629699,500.0,0.00019477,2]
[314650928,1708503630637,500.0,0.00019477,2]
[314650929,1708503644363,500.0,0.00019476,2]
[314650930,1708503646931,4211.3,0.00019477,2]
[314650931,1708503648144,5000.0,0.0002222,6]
[314650932,1708503651331,500.0,0.00019477,2]
[314650933,1708503655932,5000.0,0.0002222,6]
[314650934,1708503657171,500.0,0.00019477,2]
[314650935,1708503664539,5000.0,0.0002222,6]
[314650936,1708503670856,837.25,0.00019476,2]
[314650937,1708503673131,5000.0,0.0002222,6]
[314650938,1708503674544,500.0,0.00019477,2]
[314650939,1708503676248,500.0,0.00019479,2]
[314650940,1708503681230,2067.52913261,0.0002222,6]
[314650941,1708503682399,500.0,0.00019477,2]
[314650942,1708503686323,500.0,0.00019476,2]
[314650943,1708503688235,1000.0,0.00019477,2]
[314650944,1708503689221,582.75,0.00019477,2]
[314650945,1708503689309,2091.78280279,0.0002222,6]
[314650946,1708503689515,969.85,0.00019476,2]
[314650947,1708503692040,1454.42,0.00019476,2]
[314650948,1708503694110,500.0,0.00019476,2]
[314650949,1708503695953,500.0,0.00019476,2]
[314650950,1708503696264,11155.73,0.00019477,2]
[314650951,1708503696298,3784.08,0.00019477,2]
[314650952,1708503698362,500.0,0.00019477,2]
[314650953,1708503704903,500.0,0.00019476,2]
[314650954,1708503718920,2089.23,0.00019476,2]
[314650955,1708503724074,2903.79,0.00019477,2]
[314650956,1708503724375,696.36,0.00019476,2]
[314650957,1708503732357,500.0,0.00019477,2]
[314650958,1708503736798,500.0,0.00019476,2]
[314650959,1708503742341,1943.66,0.00019479,2]
[314650960,1708503745766,1707.24,0.00019476,2]
[314650961,1708503755967,8659.72,0.00019479,2]
[314650962,1708503756003,817.04,0.00019479,2]
[314650963,1708503762819,500.0,0.00019479,2]
[314650964,1708503764765,14217.71,0.00019479,2]
[314650965,1708503771231,1236.45,0.00019476,2]
[314650966,1708503771269,542.52,0.00019476,2]
[314650967,1708503775406,500.0,0.00019477,2]
[314650968,1708503777262,2503.32,0.00019477,2]
[314650969,1708503777292,623.6,0.00019477,2]
[314650970,1708503778335,500.0,0.00019479,2]
[314650971,1708503780860,4016.23,0.00019479,2]
[314650972,1708503784354,500.0,0.00019477,2]
[314650973,1708503790794,500.0,0.00019477,2]
[314650974,1708503793696,500.0,0.00019476,2]
[314650975,1708503795119,500.0,0.00019476,2]
[314650976,1708503801469,500.0,0.00019479,2]
[314650977,1708503805838,568.32779777,0.00019476,2]
[314650978,1708503805876,2207.85,0.00019476,2]
[314650979,1708503807783,500.0,0.00019477,2]
[314650980,1708503816008,500.0,0.00019477,2]
[314650981,1708503820188,718.33,0.00019479,2]
[314650982,1708503822804,875.47,0.00019477,2]
[314650983,1708503826897,2964.21,0.00019479,2]
[314650984,1708503827272,500.0,0.00019476,2]
[314650985,1708503835965,200.0,0.00019477,2]
[314650986,1708503836535,500.0,0.00019477,2]
[314650987,1708503836794,500.0,0.00019477,2]
[314650988,1708503837089,500.0,0.00019477,2]
[314650989,1708503837346,500.0,0.00019478,2]
[314650990,1708503837627,325.98220223,0.00019479,2]
[314650991,1708503837658,174.01779777,0.00019479,2]
[314650992,1708503837827,531.10570731,0.00019477,2]
[314650993,1708503837896,500.0,0.00019479,2]
[314650994,1708503838175,500.0,0.00019482,2]
[314650995,1708503852525,500.0,0.00019476,2]
[314650996,1708503855444,511.42,0.00019476,2]
[314650997,1708503866297,500.0,0.00019476,2]
[314650998,1708503870173,5306.94,0.00019479,2]
[314650999,1708503873626,500.0,0.00019476,2]
[314651000,1708503877468,500.0,0.00019477,2]
[314651001,1708503878822,3525.54,0.00019479,2]
[314651002,1708503882119,4516.81,0.00019477,2]
[314651003,1708503883338,500.0,0.00019479,2]
[314651004,1708503892807,2178.62,0.00019477,2]
[314651005,1708503894729,500.0,0.00019476,2]
[314651006,1708503906164,374.44173676,0.00019479,2]
[314651007,1708503907171,597.64826324,0.00019477,2]
[314651008,1708503907201,4221.13173676,0.00019477,2]
[314651009,1708503908521,500.0,0.00019476,2]
[314651010,1708503914440,500.0,0.00019476,2]
[314651011,1708503915686,500.0,0.00019476,2]
[314651012,1708503934238,500.0,0.00019476,2]
[314651013,1708503938073,174.56092939,0.00019479,2]
[314651014,1708503941072,500.0,0.00019476,2]
[314651015,1708503950572,8070.72382877,0.00019479,2]
[314651016,1708503950612,6246.59617123,0.00019479,2]
[314651017,1708503953010,500.0,0.00019479,2]
[314651018,1708503953061,1394.33,0.00019476,2]
[314651019,1708503960784,373.73862716,0.000189,2]
[314651020,1708503962929,592.84,0.00019476,2]
[314651021,1708503966233,1015.4,0.00019476,2]
[314651022,1708503971496,159.02038948,0.00019476,2]
[314651023,1708503975634,2782.8,0.00019479,2]
[314651024,1708503976407,1862.68,0.00019476,2]
[314651025,1708503984712,500.0,0.00019479,2]
[314651026,1708503989482,500.0,0.00019476,2]
[314651027,1708503996112,500.0,0.00019476,2]
[314651028,1708503996449,7107.57,0.00019476,2]
[314651029,1708503997441,500.0,0.00019476,2]
[314651030,1708503997662,500.0,0.00019477,2]
[314651031,1708504005612,13630.53,0.00019476,2]
[314651032,1708504018613,500.0,0.00019476,2]
[314651033,1708504018914,3848.89,0.00019476,2]
[314651034,1708504020471,500.0,0.00019476,2]
[314651039,1708504030879,437.92881831,0.00019476,2]
[314651040,1708504034566,500.0,0.00019476,2]
[314651041,1708504034651,530.56,0.00019476,2]
[314651042,1708504036544,2996.63,0.00019479,2]
[314651043,1708504044994,500.0,0.00019479,2]
[314651044,1708504049739,500.0,0.00019476,2]
[314651045,1708504050777,500.0,0.00019479,2]
[314651046,1708504054469,500.0,0.00019476,2]
[314651047,1708504063369,500.0,0.00019476,2]
[314651048,1708504064045,586.66,0.00019476,2]
[314651049,1708504065358,2840.7,0.00019476,2]
[314651050,1708504077496,500.0,0.00019476,2]
[314651051,1708504084087,652.75,0.00019476,2]
[314651052,1708504085733,500.0,0.00019476,2]
[314651053,1708504089588,250.0,0.00019031,2]
[314651054,1708504091850,545.56,0.00019476,2]
[314651055,1708504100472,500.0,0.00019476,2]
[314651056,1708504104955,810.32118169,0.00019476,2]
[314651057,1708504104985,1417.00881831,0.00019476,2]
[314651058,1708504111662,500.0,0.00019476,2]
[314651059,1708504112114,500.0,0.00019477,2]
[314651060,1708504115228,572.22,0.00019476,2]
[314651061,1708504116012,500.0,0.00019476,2]
[314651062,1708504122251,500.0,0.00019476,2]
[314651063,1708504124963,3378.64,0.00019476,2]
[314651066,1708504127511,500.0,0.00019476,2]
[314651067,1708504134781,500.0,0.00019476,2]
[314651068,1708504140010,-180.74699498,0.00019649,2]
[314651069,1708504146390,303.39597932,0.00019476,2]
[314651072,1708504148408,500.0,0.00019476,2]
[314651073,1708504149419,726.7,0.00019476,2]
[314651076,1708504158808,500.0,0.00019476,2]
[314651077,1708504164544,500.0,0.00019477,2]
[314651078,1708504170257,731.21,0.00019476,2]
[314651079,1708504175523,583.5,0.00019476,2]
[314651082,1708504181494,500.0,0.00019476,2]
[314651083,1708504183206,500.0,0.00019477,2]
[314651084,1708504186410,500.0,0.00019476,2]
[314651085,1708504187261,325.98829797,0.00019476,2]
[314651086,1708504200481,12967.71173275,0.00019476,2]
[314651087,1708504200512,753.04826725,0.00019476,2]
[314651090,1708504202374,500.0,0.00019476,2]
[314651094,1708504211052,299.62859388,0.00019476,2]
[314651095,1708504211979,620.00002447,0.00019555,2]
[314651096,1708504217896,500.0,0.00019476,2]
[314651097,1708504225351,521.99192232,0.00019476,2]
[314651098,1708504229323,2666.85,0.00019476,2]
[314651119,1708504232166,-1982.88,0.00019739,3]
[314651120,1708504232176,-478.5918885,0.0001974,3]
[314651259,1708504238155,-2.9381115,0.0001974,3]
[314651261,1708504238165,-3781.22,0.0001974,3]
[314651264,1708504238174,-1463.90346164,0.00019749,2]
[314651265,1708504238183,-500.0,0.00019749,2]
[314651267,1708504238190,-1008.18,0.00019749,2]
[314651269,1708504238200,-3544.97,0.00019749,2]
[314651271,1708504238209,-7763.97306508,0.00019749,2]
[314651292,1708504238912,500.0,0.00019476,2]
[314651641,1708504246519,-317.30560174,0.0001974,3]
[314651696,1708504247683,500.0,0.00019476,2]
[314651710,1708504253058,500.0,0.00019476,2]
[314651711,1708504256644,332.52172932,0.00019476,2]
[314651712,1708504272558,587.94,0.00019476,2]
[314651713,1708504275167,2871.77,0.00019476,2]
[314651714,1708504285602,500.0,0.00019476,2]
[314651715,1708504286030,1767.7569662,0.00019031,2]
[314651716,1708504296619,500.0,0.00019476,2]
[314651717,1708504310444,505.08,0.00019476,2]
[314651718,1708504313160,189.31610732,0.00019476,2]
[314651719,1708504314311,502.27,0.00019476,2]
[314651720,1708504347878,1036.47,0.00019476,2]
[314651722,1708504357397,508.6,0.00019476,2]
[314651723,1708504379572,500.0,0.00019476,2]
[314651724,1708504464476,300.0,0.000221,10]
[314651725,1708504472882,521.8,0.00019476,2]
[314651726,1708504562199,249.15908477,0.000189,2]
[314651727,1708504600876,4367.3795534,0.00018975,2]
[314651728,1708504667542,2671.22,0.00019738,3]
[314651729,1708504711846,3065.07,0.00019738,3]
[314651730,1708504746865,1806.4804466,0.00019738,3]
[314651731,1708504890254,151.62887317,0.00019621,2]
[314651734,1708504970729,4484.51,0.00019738,3]
[314651735,1708504981094,2015.49,0.00019738,3]
[314651762,1708505432328,-246.87261044,0.00019638,2]
[314651763,1708505432338,-225.09983032,0.00019639,2]
[314651764,1708505432350,-19.29080687,0.00019639,2]
[314651765,1708505432359,-3401.18,0.00019737,3]
[314651766,1708505432369,-2834.31,0.00019737,3]
[314651767,1708505432378,-2361.93,0.00019737,3]
[314651768,1708505432387,-354.03057682,0.00019746,2]
[314651770,1708505432397,-834.16,0.00019746,2]
[314651772,1708505432406,-500.0,0.00019746,2]
[314651774,1708505432415,-500.0,0.00019746,2]
[314651776,1708505432425,-831.63,0.00019746,2]
[314651778,1708505432434,-500.0,0.00019746,2]
[314651780,1708505432443,-500.0,0.00019746,2]
[314651782,1708505432452,-500.0,0.00019746,2]
[314651784,1708505432461,-500.0,0.00019746,2]
[314651786,1708505432471,-1626.14,0.00019746,2]
[314651787,1708505432480,-23484.15,0.00019746,2]
[314651788,1708505432489,-500.0,0.00019746,2]
[314651789,1708505432499,-500.0,0.00019746,2]
[314651791,1708505432507,-500.0,0.00019746,2]
[314651792,1708505432516,-500.0,0.00019746,2]
[314651794,1708505432525,-500.0,0.00019746,2]
[314651796,1708505432534,-500.0,0.00019746,2]
[314651798,1708505432543,-533.13,0.00019746,2]
[314651800,1708505432551,-936.78,0.00019746,2]
[314651802,1708505432560,-1006.03894291,0.00019746,2]
[314651804,1708505432569,-500.0,0.00019747,2]
[314651806,1708505432578,-500.0,0.00019747,2]
[314651808,1708505432587,-500.0,0.00019747,2]
[314651809,1708505432596,-500.0,0.00019747,2]
[314651811,1708505432605,-500.0,0.00019747,2]
[314651813,1708505432614,-594.41,0.00019747,2]
[314651814,1708505432623,-500.0,0.00019747,2]
[314651815,1708505432633,-500.0,0.00019747,2]
[314651816,1708505432643,-578.77,0.00019747,2]
[314651817,1708505432652,-342.24176169,0.00019747,2]
[314651818,1708505432661,-2241.05,0.00019747,2]
[314651819,1708505432670,-500.0,0.00019747,2]
[314651820,1708505432679,-500.0,0.00019747,2]
[314651821,1708505432689,-360.71997877,0.00019747,2]
[314651822,1708505432698,-2110.75,0.00019747,2]
[314651823,1708505432707,-1024.3,0.00019747,2]
[314651824,1708505432716,-256.59234647,0.00019747,2]
[314651825,1708505432726,-500.0,0.00019747,2]
[314651826,1708505432735,-2115.85,0.00019747,2]
[314651827,1708505432745,-3610.78,0.00019747,2]
[314651828,1708505432754,-500.0,0.00019747,2]
[314651829,1708505432763,-500.0,0.00019747,2]
[314651830,1708505432773,-500.0,0.00019747,2]
[314651831,1708505432783,-500.0,0.00019747,2]
[314651832,1708505432792,-500.0,0.00019747,2]
[314651833,1708505432801,-500.0,0.00019747,2]
[314651834,1708505432810,-500.0,0.00019747,2]
[314651835,1708505432820,-500.0,0.00019747,2]
[314651836,1708505432829,-2794.71,0.00019747,2]
[314651837,1708505432838,-24072.11,0.00019747,2]
[314651838,1708505432848,-500.0,0.00019747,2]
[314651839,1708505432857,-1112.69,0.00019747,2]
[314651840,1708505432866,-500.0,0.00019747,2]
[314651841,1708505433128,-500.0,0.00019747,2]
[314651842,1708505433139,-1200.56,0.00019747,2]
[314651843,1708505433149,-500.0,0.00019747,2]
[314651844,1708505433158,-506.45,0.00019747,2]
[314651845,1708505433167,-500.0,0.00019747,2]
[314651846,1708505433177,-500.0,0.00019747,2]
[314651847,1708505433186,-802.37,0.00019747,2]
[314651848,1708505433195,-500.0,0.00019747,2]
[314651849,1708505433204,-500.0,0.00019747,2]
[314651850,1708505433213,-1393.82,0.00019747,2]
[314651851,1708505433222,-500.0,0.00019747,2]
[314651852,1708505433231,-500.0,0.00019747,2]
[314651853,1708505433241,-667.34,0.00019747,2]
[314651854,1708505433250,-271.2184854,0.00019747,2]
[314651855,1708505433259,-500.0,0.00019747,2]
[314651856,1708505433269,-1075.45,0.00019747,2]
[314651857,1708505433280,-1785.06,0.00019747,2]
[314651858,1708505433289,-1636.1,0.00019747,2]
[314651859,1708505433298,-213.08781164,0.00019748,2]
[314651860,1708505433307,-5954.58136225,0.00019748,2]
[314651875,1708505438296,-500.0,0.00019746,2]
[314651876,1708505438305,-119.68,0.00019746,2]
[314651964,1708505658171,930.57564947,0.000176,2]
[314651966,1708505764660,166.10605652,0.000189,2]
[314651967,1708505846364,1293.02472868,0.000189,2]
[314651968,1708505862566,1293.02472868,0.000189,2]
[314651969,1708505878501,1293.02472868,0.000189,2]
[314651970,1708505898370,1293.02472868,0.000189,2]
[314651971,1708505916368,1293.02472868,0.000189,2]
[314651972,1708505932382,1293.02472868,0.000189,2]
[314651973,1708505950402,1293.02472868,0.000189,2]
[314651974,1708505966369,1293.02472868,0.000189,2]
[314651975,1708505984507,1293.02472868,0.000189,2]
[314651976,1708506008530,1293.02472868,0.000189,2]
[314651977,1708506024412,1293.02472868,0.000189,2]
[314651978,1708506042397,1189.14302682,0.000189,2]
[314651979,1708506058514,1292.66766642,0.000189,2]
[314651980,1708506102406,560.98838688,0.000189,2]
[314651981,1708506261038,300.0,0.00021,9]
[314651983,1708506310667,3192.08501719,0.00016,5]
[314651987,1708506518500,188.451814,0.00018746,2]
[314652001,1708506563538,1183.9856604,0.00018747,2]
[314652025,1708506632565,-620.00000123,0.00019506,2]
[314652026,1708506632574,-1851.5,0.00019734,3]
[314652027,1708506632584,-2818.85457161,0.00019735,2]
[314652028,1708506632593,-3199.39,0.00019735,3]
[314652029,1708506632602,-2666.16,0.00019735,3]
[314652030,1708506632611,-2221.8,0.00019735,3]
[314652031,1708506632620,-287.05870372,0.00019738,2]
[314652032,1708506632630,-500.0,0.00019744,2]
[314652033,1708506632639,-981.62,0.00019744,2]